bitfinex-derivatives/quotes_BTCF0:USTF0_20250902
["timestamp","ask_amount","ask_price","bid_price","bid_amount"]
[1756846197547,0.46212614,111450.0,111440.0,1.84407533]
[1756846198247,0.48661443,111450.0,111440.0,1.84407533]
[1756846199149,0.46212614,111450.0,111440.0,0.2731]
[1756846199351,0.48661447,111450.0,111440.0,1.62391533]
[1756846200445,0.44007366,111450.0,111440.0,1.62391533]
[1756846200652,0.02669,111450.0,111440.0,1.98933066]
[1756846201148,0.02669,111450.0,111440.0,1.12393066]
[1756846201347,0.02669,111450.0,111440.0,1.98917066]
[1756846201553,0.02669,111450.0,111440.0,1.25834]
[1756846201849,0.08745,111450.0,111440.0,1.62375533]
[1756846202351,0.08745,111450.0,111440.0,0.38851533]
[1756846202551,0.08745,111450.0,111440.0,1.60371533]
[1756846202738,0.45286533,111450.0,111440.0,1.60367533]
[1756846203352,0.45286533,111450.0,111440.0,1.23826]
[1756846203552,0.45286533,111450.0,111440.0,1.60367533]
[1756846203553,0.41558533,111450.0,111440.0,1.60367533]
[1756846203742,0.45286533,111450.0,111440.0,1.60367533]
[1756846204350,0.08745,111450.0,111440.0,1.60367533]
[1756846204650,0.41558533,111450.0,111440.0,1.96909066]
[1756846204851,0.02669,111450.0,111440.0,1.96909066]
[1756846205249,0.02669,111450.0,111440.0,1.23826]
[1756846205550,0.02669,111450.0,111440.0,1.96909066]
[1756846206051,0.06397,111450.0,111440.0,1.96909066]
[1756846206251,0.02669,111450.0,111440.0,1.96909066]
[1756846206752,0.003,111450.0,111440.0,1.96909066]
[1756846208447,0.003,111450.0,111440.0,2.03939231]
[1756846209247,0.003,111450.0,111440.0,1.30856165]
[1756846209445,0.003,111450.0,111440.0,2.03939231]
[1756846211453,0.003,111450.0,111440.0,1.17423231]
[1756846211750,0.003,111450.0,111440.0,2.03891231]
[1756846214550,0.02752057,111450.0,111440.0,2.03891231]
[1756846215152,0.003,111450.0,111440.0,2.03891231]
[1756846215351,0.003,111450.0,111440.0,2.12864311]
[1756846215546,0.003,111450.0,111440.0,3.86688311]
[1756846216043,0.003,111450.0,111440.0,4.11688311]
[1756846217357,0.003,111450.0,111440.0,3.25220311]
[1756846217553,0.003,111450.0,111440.0,4.11648311]
[1756846220361,0.003,111450.0,111440.0,3.25220311]
[1756846220654,0.003,111450.0,111440.0,4.11640311]
[1756846222560,0.003,111450.0,111440.0,4.11624311]
[1756846225860,0.003,111450.0,111440.0,4.11592311]
[1756846228164,0.003,111450.0,111440.0,3.25220311]
[1756846228365,0.003,111450.0,111440.0,4.11588311]
[1756846230266,0.003,111450.0,111440.0,4.13584619]
[1756846230463,0.08477,111480.0,111470.0,0.0176]
[1756846230769,0.48429689,111480.0,111470.0,1.62187533]
[1756846231159,0.48429689,111480.0,111470.0,1.62183533]
[1756846231358,0.48429689,111480.0,111470.0,0.75851533]
[1756846231859,0.49429689,111480.0,111470.0,1.62179533]
[1756846232458,0.49429689,111480.0,111470.0,1.25179533]
[1756846232660,0.12888156,111480.0,111470.0,1.25179533]
[1756846232860,1.10971222,111480.0,111470.0,1.23741533]
[1756846233168,1.10971222,111480.0,111470.0,0.88076]
[1756846233365,1.10971222,111480.0,111470.0,0.88626]
[1756846233668,0.37888156,111480.0,111470.0,0.88626]
[1756846233863,0.74429689,111480.0,111470.0,0.0231]
[1756846234063,0.74429689,111480.0,111470.0,0.38851533]
[1756846234266,0.74429689,111480.0,111470.0,1.25159533]
[1756846235766,0.74429689,111480.0,111470.0,0.38851533]
[1756846235968,1.10971222,111480.0,111470.0,0.87176]
[1756846236160,1.10971222,111480.0,111460.0,0.40847258]
[1756846236161,0.03689,111470.0,111460.0,0.40847258]
[1756846236357,0.45018533,111470.0,111460.0,1.27139258]
[1756846236764,0.45018533,111470.0,111460.0,1.57139258]
[1756846236962,0.45018533,111470.0,111460.0,1.29139258]
[1756846237359,0.45318533,111470.0,111460.0,1.29139258]
[1756846237571,0.45318533,111470.0,111460.0,1.60139258]
[1756846238070,0.45618533,111470.0,111460.0,1.27135258]
[1756846238967,0.45618533,111470.0,111460.0,0.04305725]
[1756846239172,0.70618533,111470.0,111460.0,0.87156]
[1756846239479,0.70618533,111470.0,111460.0,0.88036]
[1756846239662,0.70618533,111470.0,111460.0,0.88586]
[1756846241370,0.34077,111470.0,111460.0,0.88586]
[1756846241772,0.70618533,111470.0,111460.0,0.88586]
[1756846243467,0.70618533,111470.0,111460.0,1.25127533]
[1756846243775,0.70618533,111470.0,111460.0,1.51127533]
[1756846244075,0.34077,111470.0,111460.0,1.52127533]
[1756846244267,0.70618533,111470.0,111460.0,1.52127533]
[1756846244468,0.34077,111470.0,111460.0,1.52127533]
[1756846244967,0.70618533,111470.0,111460.0,1.52127533]
[1756846245168,0.34077,111470.0,111460.0,1.52127533]
[1756846245577,0.09077,111470.0,111460.0,1.52127533]
[1756846246272,0.45618533,111470.0,111460.0,1.52127533]
[1756846246967,0.04692,111420.0,111410.0,0.07013437]
[1756846247172,0.08071,111420.0,111410.0,1.27225437]
[1756846247369,0.08071,111420.0,111410.0,1.01225437]
[1756846247577,0.08071,111420.0,111410.0,0.91205]
[1756846247973,0.45528534,111420.0,111410.0,0.93738]
[1756846248170,0.45528534,111420.0,111410.0,0.93938]
[1756846248370,0.82070067,111420.0,111410.0,0.93938]
[1756846248573,0.82070067,111420.0,111410.0,0.94138]
[1756846249778,0.82070067,111420.0,111410.0,0.93938]
[1756846249978,0.82070067,111420.0,111410.0,0.94138]
[1756846250282,0.89374295,111420.0,111410.0,0.94138]
[1756846250674,0.82070067,111420.0,111410.0,0.94138]
[1756846251782,0.82070067,111420.0,111410.0,1.07138]
[1756846254374,0.82070067,111420.0,111410.0,0.2093]
[1756846254577,0.82070067,111420.0,111410.0,0.94114]
[1756846255484,0.89242926,111420.0,111410.0,0.94114]
[1756846257586,0.527313,111420.0,111410.0,0.94114]
[1756846257980,0.527313,111420.0,111410.0,0.0793]
[1756846258286,0.527313,111420.0,111410.0,0.9411]
[1756846258485,0.8930274,111420.0,111410.0,0.9411]
[1756846258992,0.8930274,111420.0,111410.0,0.94094]
[1756846259485,0.527313,111420.0,111410.0,0.94094]
[1756846261084,0.8930274,111420.0,111410.0,0.94094]
[1756846264281,0.8930274,111420.0,111410.0,0.0793]
[1756846264483,0.8930274,111420.0,111410.0,0.94062]
[1756846267192,0.8930274,111420.0,111410.0,0.0793]
[1756846267394,0.8930274,111420.0,111410.0,0.94038]
[1756846267788,0.8930274,111420.0,111410.0,0.05397]
[1756846267992,1.16740731,111420.0,111410.0,0.004]
[1756846268189,0.06225,111400.0,111390.0,0.07373]
[1756846268382,0.4643844,111400.0,111390.0,0.07373]
[1756846268589,0.7936788,111400.0,111390.0,0.861]
[1756846269188,0.85449283,111400.0,111380.0,1.76325]
[1756846269389,0.12306403,111400.0,111390.0,0.861]
[1756846269988,0.12406403,111400.0,111390.0,0.861]
[1756846270189,0.12406403,111400.0,111390.0,0.88441]
[1756846270497,0.85549283,111400.0,111390.0,0.88437]
[1756846270695,0.85549283,111400.0,111380.0,1.76325]
[1756846270897,0.7678488,111390.0,111380.0,1.76325]
[1756846271096,0.79224283,111390.0,111380.0,2.62409]
[1756846272197,0.79324283,111390.0,111380.0,2.62409]
[1756846272792,0.79424283,111390.0,111380.0,2.62409]
[1756846273593,0.39210843,111390.0,111380.0,2.62409]
[1756846275900,0.39210843,111390.0,111380.0,2.91409]
[1756846276100,0.39210843,111390.0,111380.0,2.89409]
[1756846276703,0.39210843,111390.0,111380.0,2.62409]
[1756846277497,0.42860611,111390.0,111380.0,2.62409]
[1756846277697,0.39218611,111390.0,111380.0,2.62409]
[1756846278506,0.39218611,111390.0,111380.0,2.86409]
[1756846278807,0.39218611,111390.0,111380.0,2.62409]
[1756846280105,0.42860611,111390.0,111380.0,2.62409]
[1756846281206,0.42860611,111390.0,111380.0,1.76325]
[1756846281408,0.42860611,111390.0,111380.0,2.62349]
[1756846281708,0.42860611,111390.0,111380.0,1.76325]
[1756846282008,0.42860611,111390.0,111380.0,2.62349]
[1756846282311,0.42860611,111390.0,111380.0,1.76325]
[1756846282508,0.42860611,111390.0,111380.0,2.62345]
[1756846284520,0.39218611,111390.0,111380.0,2.62345]
[1756846284914,0.3677144,111390.0,111380.0,2.62345]
[1756846285118,0.39218376,111390.0,111380.0,2.62345]
[1756846285314,0.42860376,111390.0,111380.0,2.62345]
[1756846288921,0.42860376,111390.0,111380.0,1.76325]
[1756846289119,0.42860376,111390.0,111380.0,2.62297]
[1756846289721,0.42860376,111390.0,111380.0,1.76325]
[1756846289922,0.42860376,111390.0,111380.0,2.62297]
[1756846290610,0.79431816,111390.0,111380.0,2.62297]
[1756846291322,0.79431816,111390.0,111380.0,2.62289]
[1756846295725,0.84181816,111390.0,111380.0,0.93273]
[1756846297526,0.84181816,111390.0,111380.0,0.93221]
[1756846298828,0.11038936,111390.0,111380.0,0.93221]
[1756846299129,0.47636376,111390.0,111380.0,0.93221]
[1756846299330,0.43968376,111390.0,111380.0,0.93221]
[1756846299532,0.39218376,111390.0,111380.0,0.93221]
[1756846299825,0.39218376,111390.0,111380.0,1.22221]
[1756846300231,0.39218376,111390.0,111380.0,0.95221]
[1756846301331,0.41471376,111390.0,111380.0,0.93221]
[1756846301524,0.43844376,111390.0,111380.0,0.93221]
[1756846302026,0.02646936,111390.0,111380.0,0.93221]
[1756846302222,0.02646936,111390.0,111380.0,1.20221]
[1756846302424,0.39218376,111390.0,111380.0,0.95221]
[1756846302834,0.41471376,111390.0,111380.0,0.95221]
[1756846303233,0.43827376,111390.0,111380.0,0.95221]
[1756846303628,0.43827376,111390.0,111380.0,0.93221]
[1756846303835,0.02646936,111390.0,111380.0,0.93221]
[1756846304336,0.02646936,111390.0,111380.0,0.95221]
[1756846304629,0.02646936,111390.0,111380.0,1.8679244]
[1756846304822,0.002,111390.0,111380.0,1.9577029]
[1756846305136,0.002,111390.0,111380.0,1.5919885]
[1756846305337,0.002,111390.0,111380.0,1.9577029]
[1756846305834,0.001,111390.0,111380.0,1.9577029]
[1756846306034,0.001,111390.0,111380.0,1.9587029]
[1756846306639,0.001,111390.0,111380.0,1.9577029]
[1756846306836,0.001,111390.0,111380.0,1.9587029]
[1756846307032,0.001,111390.0,111380.0,0.32409]
[1756846307234,0.001,111390.0,111380.0,1.49257]
[1756846307538,0.3657144,111400.0,111380.0,1.51270068]
[1756846307730,0.4484844,111400.0,111390.0,0.07235]
[1756846308137,0.4118044,111400.0,111390.0,0.07235]
[1756846308336,0.4484844,111400.0,111390.0,0.07235]
[1756846308538,0.4484844,111400.0,111390.0,0.93063]
[1756846308731,0.4620144,111400.0,111390.0,0.93059]
[1756846308931,0.4620144,111400.0,111390.0,0.07235]
[1756846309135,0.4620144,111400.0,111390.0,0.76599]
[1756846309645,0.4630144,111400.0,111390.0,0.76599]
[1756846310341,0.4620144,111400.0,111390.0,0.76599]
[1756846310541,0.4640144,111400.0,111390.0,0.76599]
[1756846310941,0.4660144,111400.0,111390.0,0.76599]
[1756846311537,0.4640144,111400.0,111390.0,0.76599]
[1756846311734,0.4504844,111400.0,111390.0,0.76599]
[1756846311940,0.4484844,111400.0,111390.0,0.76599]
[1756846312241,0.4494844,111400.0,111390.0,0.93039]
[1756846314347,0.4630144,111400.0,111390.0,0.93015]
[1756846316351,0.4494844,111400.0,111390.0,0.93015]
[1756846316648,0.4630144,111400.0,111390.0,0.93015]
[1756846317449,0.82896902,111400.0,111390.0,0.93015]
[1756846318049,0.82896902,111400.0,111390.0,0.07235]
[1756846318348,0.82896902,111400.0,111390.0,0.92995]
[1756846320147,0.81543902,111400.0,111390.0,0.92995]
[1756846320446,0.82896902,111400.0,111390.0,0.92995]
[1756846321844,0.82896902,111400.0,111390.0,0.07235]
[1756846322044,0.82896902,111400.0,111390.0,0.92967]
[1756846324455,0.81543902,111400.0,111390.0,0.92967]
[1756846324647,0.08377,111400.0,111390.0,0.92967]
[1756846324957,0.81543902,111400.0,111390.0,0.92967]
[1756846326159,0.82896902,111400.0,111390.0,0.92967]
[1756846327652,0.82896902,111400.0,111390.0,0.04702]
[1756846327653,1.19480353,111400.0,111390.0,0.04702]
[1756846327852,1.19480353,111400.0,111380.0,0.04546068]
[1756846328061,0.81443902,111390.0,111380.0,0.09248068]
[1756846328248,0.81443902,111390.0,111380.0,0.94928068]
[1756846329153,0.81443902,111390.0,111380.0,0.95028068]
[1756846329348,0.81443902,111390.0,111380.0,0.09348068]
[1756846329560,0.81443902,111390.0,111380.0,0.95020068]
[1756846331154,0.81443902,111390.0,111380.0,0.94920068]
[1756846331752,0.81543902,111390.0,111380.0,0.94920068]
[1756846335363,0.81543902,111390.0,111380.0,0.87685068]
[1756846335554,0.81543902,111390.0,111380.0,0.94911068]
[1756846336559,0.08377,111390.0,111380.0,0.94911068]
[1756846336755,0.44960451,111390.0,111380.0,0.94911068]
[1756846337553,0.44898451,111390.0,111380.0,1.27911068]
[1756846338561,0.41292451,111390.0,111380.0,1.27911068]
[1756846338762,0.44898451,111390.0,111380.0,1.27911068]
[1756846341375,0.44898451,111390.0,111380.0,0.94911068]
[1756846344976,0.08315,111390.0,111380.0,0.92898]
[1756846345172,0.44898451,111390.0,111380.0,0.92898]
[1756846350881,0.08315,111390.0,111380.0,0.92898]
[1756846351084,0.44898451,111390.0,111380.0,0.92898]
[1756846352680,0.001,111390.0,111380.0,2.23064902]
[1756846353176,0.36683451,111390.0,111380.0,1.86481451]
[1756846353584,0.001,111390.0,111380.0,2.32042702]
[1756846354082,0.40189451,111410.0,111390.0,0.02533]
[1756846354283,0.10685556,111410.0,111400.0,0.92738]
[1756846354484,0.08228,111410.0,111400.0,0.92738]
[1756846354783,0.10685454,111410.0,111400.0,0.92738]
[1756846355181,0.10685454,111410.0,111400.0,0.9273]
[1756846355380,0.47268905,111410.0,111400.0,0.9273]
[1756846356987,0.47268905,111410.0,111400.0,0.07226]
[1756846357178,0.47368905,111410.0,111400.0,0.92714]
[1756846357379,0.47368905,111410.0,111400.0,0.07226]
[1756846357677,0.47368905,111410.0,111400.0,0.92714]
[1756846359986,0.47368905,111410.0,111400.0,0.07226]
[1756846360189,0.83952356,111410.0,111400.0,0.92694]
[1756846360590,0.83952356,111410.0,111400.0,0.07226]
[1756846360786,0.83952356,111410.0,111400.0,0.9269]
[1756846361589,0.47368905,111410.0,111400.0,0.9269]
[1756846362891,0.44911451,111410.0,111400.0,0.9269]
[1756846363489,0.44911451,111410.0,111400.0,0.07226]
[1756846363690,0.44911451,111410.0,111400.0,0.9267]
[1756846365295,0.44911451,111410.0,111400.0,1.29253451]
[1756846365793,0.41305451,111410.0,111400.0,1.29253451]
[1756846365982,0.04722,111410.0,111400.0,1.29253451]
[1756846366182,0.02555907,111410.0,111400.0,2.02836902]
[1756846366383,0.001,111410.0,111400.0,2.27836902]
[1756846368086,0.00916001,111420.0,111400.0,2.36813062]
[1756846368284,0.4720636,111430.0,111410.0,0.43270989]
[1756846368481,0.5196236,111430.0,111420.0,0.92617]
[1756846369391,0.52871102,111430.0,111420.0,0.92617]
[1756846369598,0.45820193,111430.0,111420.0,0.92617]
[1756846369792,0.45820193,111430.0,111420.0,1.29200451]
[1756846370590,0.45820193,111430.0,111420.0,0.07217]
[1756846370789,0.45920193,111430.0,111420.0,0.92601]
[1756846371298,0.46020193,111430.0,111420.0,0.92601]
[1756846374590,0.46020193,111430.0,111420.0,0.07217]
[1756846374792,0.46020193,111430.0,111420.0,0.92569]
[1756846375499,0.46020193,111430.0,111420.0,0.07217]
[1756846375699,0.46020193,111430.0,111420.0,0.92557]
[1756846375998,0.46020193,111430.0,111420.0,0.92553]
[1756846377797,0.46020193,111430.0,111420.0,0.07217]
[1756846378003,0.82603644,111430.0,111420.0,0.92537]
[1756846378698,1.07603644,111430.0,111420.0,0.07217]
[1756846378901,1.07603644,111430.0,111420.0,0.29824]
[1756846379302,0.82603644,111430.0,111420.0,0.29824]
[1756846379503,0.82585784,111430.0,111420.0,0.29824]
[1756846379705,0.82585784,111430.0,111410.0,0.04536538]
[1756846380003,0.09436742,111430.0,111420.0,0.53216]
[1756846380607,0.36888225,111430.0,111410.0,0.04536538]
[1756846380899,1.58328,111420.0,111410.0,0.80219538]
[1756846381102,2.31477042,111420.0,111410.0,0.85288]
[1756846381297,2.31477042,111420.0,111410.0,0.89972]
[1756846381503,2.31477042,111420.0,111410.0,0.92505]
[1756846382206,2.31577042,111420.0,111410.0,0.92505]
[1756846382712,2.31577042,111420.0,111410.0,0.85284]
[1756846383004,2.34029776,111420.0,111410.0,0.85276]
[1756846383509,2.34229776,111420.0,111410.0,0.85276]
[1756846383811,2.34329776,111420.0,111410.0,0.85276]
[1756846384000,2.34329776,111420.0,111410.0,0.87588]
[1756846384203,2.34329776,111420.0,111410.0,0.92493]
[1756846385709,2.34329776,111420.0,111410.0,0.8996]
[1756846386406,2.34329776,111420.0,111390.0,0.07217]
[1756846386407,0.09798,111400.0,111390.0,0.07217]
[1756846386610,0.78927042,111400.0,111390.0,0.76668]
[1756846387106,0.45924521,111400.0,111390.0,0.76668]
[1756846387309,0.45924521,111400.0,111390.0,0.84333]
[1756846390110,0.46124521,111400.0,111390.0,0.84333]
[1756846390916,0.46224521,111400.0,111390.0,0.84333]
[1756846391607,0.46324521,111400.0,111390.0,0.84333]
[1756846394408,0.08728,111400.0,111390.0,0.84333]
[1756846394713,0.45302521,111400.0,111390.0,0.84333]
[1756846395512,0.46716521,111400.0,111390.0,0.84333]
[1756846400117,0.46716521,111400.0,111390.0,0.07665]
[1756846402820,0.10142,111400.0,111390.0,0.07665]
[1756846403024,0.46716521,111400.0,111390.0,0.07665]
[1756846403420,0.10142,111400.0,111390.0,0.07665]
[1756846403616,0.39442521,111400.0,111390.0,0.07665]
[1756846403923,0.45232521,111400.0,111390.0,0.07665]
[1756846405725,0.45232521,111400.0,111390.0,0.92829]
[1756846407421,0.45232521,111400.0,111390.0,0.07665]
[1756846407618,0.46646521,111400.0,111390.0,0.92817]
[1756846408318,0.49101,111400.0,111390.0,0.92817]
[1756846408828,0.49101,111400.0,111390.0,0.07665]
[1756846409013,0.12526479,111400.0,111390.0,0.07665]
[1756846409220,0.49101,111400.0,111390.0,0.92809]
[1756846409616,0.49101,111400.0,111390.0,0.85144]
[1756846409816,0.49101,111400.0,111380.0,0.04945853]
[1756846410023,0.44822521,111390.0,111380.0,0.91190853]
[1756846411420,0.44922521,111390.0,111380.0,0.91190853]
[1756846412223,0.44922521,111390.0,111380.0,0.09602853]
[1756846412425,0.44922521,111390.0,111380.0,0.94730853]
[1756846412924,0.45022521,111390.0,111380.0,0.94730853]
[1756846416626,0.08448,111390.0,111380.0,0.94730853]
[1756846416924,0.05056,111390.0,111380.0,0.94730853]
[1756846417827,0.002,111390.0,111380.0,1.92305374]
[1756846418030,0.002,111390.0,111380.0,1.55730853]
[1756846418732,0.05056,111390.0,111380.0,0.70602853]
[1756846419025,0.45207521,111390.0,111380.0,1.55694853]
[1756846420322,0.45207521,111390.0,111380.0,0.34602853]
[1756846420630,0.45207521,111390.0,111380.0,1.19678853]
[1756846421725,0.45207521,111390.0,111380.0,1.19670853]
[1756846423429,0.41630521,111390.0,111380.0,1.19670853]
[1756846424430,0.45207521,111390.0,111380.0,1.19662853]
[1756846425730,0.41630521,111390.0,111380.0,1.19662853]
[1756846426635,0.45207521,111390.0,111380.0,0.34602853]
[1756846426837,0.45207521,111390.0,111380.0,1.19642853]
[1756846429734,0.41630521,111390.0,111380.0,1.19642853]
[1756846429926,0.45207521,111390.0,111380.0,1.19642853]
[1756846430738,0.45207521,111390.0,111380.0,0.34602853]
[1756846431235,0.45207521,111390.0,111380.0,1.19614853]
[1756846432038,0.81782042,111390.0,111380.0,0.07638]
[1756846432247,0.81782042,111390.0,111380.0,0.92646]
[1756846432441,0.45207521,111390.0,111380.0,0.07638]
[1756846432631,0.45207521,111390.0,111380.0,0.92642]
[1756846432831,0.81782042,111390.0,111380.0,0.07638]
[1756846433040,0.81782042,111390.0,111380.0,0.92638]
[1756846433243,0.45207521,111390.0,111380.0,0.92638]
[1756846436136,0.8424337,111390.0,111380.0,0.92638]
[1756846436338,0.47668849,111390.0,111380.0,0.92638]
[1756846437037,0.47668841,111390.0,111380.0,0.92638]
[1756846439439,0.47683962,111390.0,111380.0,0.92638]
[1756846441441,0.84273604,111390.0,111380.0,0.92638]
[1756846445443,0.81812284,111390.0,111380.0,0.92638]
[1756846448934,0.81812284,111390.0,111380.0,0.92546]
[1756846449639,0.81812284,111390.0,111380.0,0.07638]
[1756846449840,0.81812284,111390.0,111380.0,0.92542]
[1756846453653,0.84273525,111390.0,111380.0,0.92542]
[1756846453949,0.11094241,111390.0,111380.0,0.92542]
[1756846454248,0.39247642,111390.0,111380.0,0.92542]
[1756846454451,0.36789642,111390.0,111380.0,1.29131642]
[1756846455050,0.45052642,111390.0,111380.0,0.92542]
[1756846456644,0.41596642,111390.0,111380.0,0.92542]
[1756846457154,0.45052642,111390.0,111380.0,0.92542]
[1756846458954,0.45052642,111390.0,111380.0,0.92486]
[1756846462755,0.36789642,111390.0,111380.0,0.92486]
[1756846462950,0.45052642,111390.0,111380.0,0.92486]
[1756846463150,0.45052642,111390.0,111380.0,0.07638]
[1756846463351,0.45052642,111390.0,111380.0,0.92454]
[1756846465259,0.08463,111390.0,111380.0,0.92454]
[1756846465459,0.45052642,111390.0,111380.0,0.92454]
[1756846466060,0.41596642,111390.0,111380.0,0.92454]
[1756846466648,0.45052642,111390.0,111380.0,1.29043642]
[1756846467157,0.45052642,111390.0,111380.0,0.9243]
[1756846471071,0.45052642,111390.0,111380.0,0.92402]
[1756846471254,0.002,111390.0,111380.0,1.65581284]
[1756846471459,0.002,111390.0,111380.0,2.02581284]
[1756846472174,0.36789642,111390.0,111380.0,1.65991642]
[1756846473378,0.39153642,111390.0,111380.0,1.65975642]
[1756846474575,0.41596642,111390.0,111380.0,1.28975642]
[1756846474765,0.41596642,111390.0,111380.0,1.28967642]
[1756846475877,0.36789642,111390.0,111380.0,1.28967642]
[1756846476078,0.36789642,111390.0,111380.0,1.60967642]
[1756846476271,0.002,111390.0,111380.0,1.60967642]
[1756846476472,0.41596642,111390.0,111380.0,0.44227642]
[1756846476775,0.41596642,111390.0,111380.0,1.28959642]
[1756846478368,0.36789642,111390.0,111380.0,1.28959642]
[1756846478570,0.002,111390.0,111380.0,2.36526904]
[1756846480681,0.002,111390.0,111380.0,2.73116546]
[1756846480870,0.002,111390.0,111380.0,2.843359]
[1756846483181,0.002,111390.0,111380.0,1.996039]
[1756846483381,0.002,111390.0,111380.0,2.842919]
[1756846483769,0.002,111390.0,111380.0,2.73072546]
[1756846484478,1.5,111410.0,111380.0,2.9326952]
[1756846484672,1.5,111410.0,111400.0,0.89997334]
[1756846484874,1.5,111410.0,111400.0,2.50250056]
[1756846485080,1.5,111410.0,111400.0,2.13660414]
[1756846485382,1.5,111410.0,111400.0,2.76596477]
[1756846485582,1.5,111410.0,111400.0,1.55338835]
[1756846485886,1.501,111410.0,111400.0,2.40002835]
[1756846486180,0.004,111410.0,111400.0,2.40002835]
[1756846486582,0.003,111410.0,111400.0,2.40002835]
[1756846486783,1.5,111420.0,111410.0,0.1681722]
[1756846486985,1.5,111420.0,111410.0,2.64298862]
[1756846487384,1.5,111420.0,111410.0,3.48942862]
[1756846488084,1.5,111420.0,111410.0,3.85532504]
[1756846488887,1.5,111420.0,111410.0,4.10524504]
[1756846489386,1.5,111420.0,111410.0,3.25888504]
[1756846489689,0.0371,111440.0,111420.0,0.08974]
[1756846489877,0.08267,111440.0,111430.0,1.29059642]
[1756846490076,0.08267,111440.0,111430.0,1.60059642]
[1756846490577,0.08267,111440.0,111430.0,0.77431642]
[1756846490778,0.08267,111440.0,111430.0,1.62055642]
[1756846491080,0.08267,111440.0,111430.0,1.36300362]
[1756846491081,0.08467,111440.0,111430.0,1.36300362]
[1756846491286,0.08467,111440.0,111430.0,1.69300362]
[1756846491886,0.04857,111440.0,111430.0,1.69300362]
[1756846492780,0.04957,111440.0,111430.0,1.69300362]
[1756846493288,0.004,111440.0,111430.0,1.78273972]
[1756846493484,0.004,111440.0,111430.0,1.72272362]
[1756846498589,0.004,111440.0,111430.0,1.81245982]
[1756846498892,0.004,111440.0,111430.0,2.17835624]
[1756846499190,0.004,111440.0,111430.0,1.77201982]
[1756846499589,0.0371,111470.0,111430.0,2.3869099]
[1756846499787,0.08267,111470.0,111460.0,0.44381325]
[1756846499984,0.08267,111470.0,111460.0,1.28929325]
[1756846500186,0.44806325,111470.0,111460.0,0.07842]
[1756846500387,0.44806325,111470.0,111460.0,0.92386]
[1756846500587,0.08267,111470.0,111460.0,0.92386]
[1756846500894,0.08767,111470.0,111460.0,0.92386]
[1756846501096,0.45306325,111470.0,111460.0,0.92386]
[1756846501304,0.45306325,111470.0,111460.0,0.92382]
[1756846501594,0.08567,111470.0,111460.0,0.92382]
[1756846501802,0.09067,111470.0,111460.0,0.92382]
[1756846502184,0.09067,111470.0,111460.0,0.92378]
[1756846502687,0.09980599,111470.0,111460.0,0.92378]
[1756846502888,0.09680599,111470.0,111460.0,0.92378]
[1756846503184,0.10180599,111470.0,111460.0,0.92378]
[1756846503994,0.09680599,111470.0,111460.0,0.92378]
[1756846504195,0.09380599,111470.0,111460.0,0.92378]
[1756846504396,0.09380599,111470.0,111460.0,0.07842]
[1756846504596,0.09380599,111470.0,111460.0,0.92358]
[1756846504786,0.09280599,111470.0,111460.0,0.92358]
[1756846504993,0.09380599,111470.0,111460.0,0.92358]
[1756846505301,0.11818377,111470.0,111460.0,0.92358]
[1756846506600,0.11818377,111470.0,111460.0,0.07842]
[1756846506802,0.11818377,111470.0,111460.0,0.92342]
[1756846507705,0.11818377,111470.0,111460.0,0.07842]
[1756846508003,0.11818377,111470.0,111460.0,0.92338]
[1756846508403,0.11818377,111470.0,111460.0,0.9233]
[1756846510904,0.11818377,111470.0,111460.0,1.28853325]
[1756846511306,0.11818377,111470.0,111460.0,1.28849325]
[1756846513413,0.11818377,111470.0,111460.0,1.28833325]
[1756846513711,0.11818377,111470.0,111460.0,0.44381325]
[1756846513909,0.11818377,111470.0,111460.0,1.28833325]
[1756846514305,0.11818377,111470.0,111460.0,1.28829325]
[1756846514704,0.73357702,111470.0,111460.0,0.9229]
[1756846514905,0.73357702,111470.0,111450.0,0.04940111]
[1756846514906,0.69647702,111470.0,111450.0,0.04940111]
[1756846515101,0.11683377,111470.0,111460.0,0.89322]
[1756846515308,0.11683377,111470.0,111460.0,0.92303]
[1756846516215,0.48222702,111470.0,111460.0,0.92303]
[1756846516910,0.48122702,111470.0,111460.0,0.92303]
[1756846517116,0.48322702,111470.0,111460.0,0.92303]
[1756846517516,0.11783377,111470.0,111460.0,0.92303]
[1756846517709,0.36783377,111470.0,111460.0,1.28842325]
[1756846518015,0.11783377,111470.0,111460.0,1.28842325]
[1756846519907,0.02737778,111470.0,111460.0,1.66842325]
[1756846520311,0.02737778,111470.0,111460.0,1.28842325]
[1756846520711,0.02737778,111470.0,111460.0,1.65842325]
[1756846521721,0.02737778,111470.0,111460.0,1.28842325]
[1756846522018,0.02737778,111470.0,111460.0,1.62842325]
[1756846522521,0.02737778,111470.0,111460.0,0.78398325]
[1756846522718,0.02737778,111470.0,111460.0,1.62798325]
[1756846524322,0.02737778,111470.0,111460.0,0.78398325]
[1756846524620,0.05035778,111470.0,111460.0,1.62798325]
[1756846525411,0.02737778,111470.0,111460.0,1.64798325]
[1756846527222,0.07410778,111470.0,111460.0,1.64770325]
[1756846528332,0.05035778,111470.0,111460.0,0.80398325]
[1756846528526,0.10985778,111470.0,111460.0,1.28762325]
[1756846528911,0.07410778,111470.0,111460.0,1.28762325]
[1756846529116,0.02737778,111470.0,111460.0,1.28762325]
[1756846529817,0.0274162,111470.0,111460.0,1.28762325]
[1756846530426,0.0274162,111470.0,111460.0,1.26223]
[1756846530723,0.0274162,111470.0,111460.0,1.62762325]
[1756846531521,0.0274162,111470.0,111460.0,1.62754325]
[1756846535928,0.1098962,111470.0,111460.0,1.59726325]
[1756846536318,0.1098962,111470.0,111460.0,0.44398325]
[1756846536520,0.1098962,111470.0,111460.0,1.28722325]
[1756846537328,0.0741462,111470.0,111460.0,1.28722325]
[1756846538530,0.1115462,111470.0,111460.0,1.28722325]
[1756846539032,0.1115462,111470.0,111460.0,1.41722325]
[1756846539324,0.72693945,111470.0,111460.0,0.02437]
[1756846539629,0.72693945,111470.0,111460.0,0.84308]
[1756846540021,0.72693945,111470.0,111460.0,0.89097]
[1756846540227,0.72693945,111470.0,111460.0,0.92078]
[1756846540624,0.3615462,111470.0,111460.0,0.92078]
[1756846540829,0.72693945,111470.0,111460.0,0.92078]
[1756846541037,0.3615462,111470.0,111460.0,0.92078]
[1756846541530,0.1115462,111470.0,111460.0,1.28617325]
[1756846541724,0.0503962,111470.0,111460.0,1.28617325]